Cogmind - Beta 13 @@@ ROGUE MODE // 2024.04.29 @ 20:29:00 Player: A Moose Result: Destroyed by S-27 Virus with Autogun Performance ------------- Evolutions (4) 2000 Regions Visited (10) 2000 Robots Destroyed (81) 405 Value Destroyed (3881) 3881 Prototype IDs (5) 100 Alien Tech Used (0) 0 Bonus (2052) 2052 TOTAL SCORE: 10438 Bonus ------- High Alert Combat Kills 360 Follower Combat Kills 288 Entered Garrisons 400 Used RIF Installer 1000 Aligned with FarCom 300 Friendly Fire -296 Cogmind --------- Core Integrity 0/850 Matter 179/300 Energy 71/160 System Corruption 13% Temperature Cool (26) Movement Flying (112) Ox1 Location -6/Lower Caves Parts ------- > --- POWER (2) -------- Light Nuclear Core > --- PROPULSION (2) --- Cooled Cesium-ion Thruster Cooled Cesium-ion Thruster > --- UTILITY (8) ------ Advanced Heat Sink Advanced Visual Processing Unit Targeting Computer > --- WEAPON (3) ------- Wave Gun Gauss Rifle > --- INVENTORY (5) ---- Phase Shifter PSU Rigger Remote Datajack Improved Plasma Cutter Peak State ------------ > --- POWER ------------ Micro Nuclear Core > --- PROPULSION ------- Wheel > --- UTILITY ---------- Improved Heat Sink Advanced Heat Sink High-capacity Storage Unit Backup Plating III Relay Coupler [NC] Decoy Drone Bay PSU Rigger > --- WEAPON ----------- Flak Cannon Hypervelocity Gauss Cannon Hypervelocity Gauss Cannon > --- INVENTORY -------- Light Nuclear Core Light Nuclear Core Light Nuclear Core Reinforced Deuterium Engine Fusion Compressor Fusion Compressor Fusion Compressor Fusion Compressor Heat Sink Advanced Heat Sink Medium Matter Pod Trap Scanner Hypervelocity Gauss Cannon Hypervelocity Gauss Cannon [Rating: 60] Favorites ----------- Power Light Nuclear Core Engine Light Angular Momentum Engine Power Core Light Nuclear Core Propulsion Wheel Treads Light Treads Leg Carbon-fiber Leg Wheel Wheel Flight Unit Cooled Cesium-ion Thruster Utility High-capacity Storage Unit Device Trap Scanner Storage High-capacity Storage Unit Processor Targeting Computer Hackware Relay Coupler [NC] Protection Hardened Medium Armor Plating Weapon Assault Rifle Energy Gun Wave Gun Energy Cannon Firepult Ballistic Gun Assault Rifle Ballistic Cannon Hypervelocity Gauss Cannon Special Weapon Remote Datajack Special Melee Weapon Datajack Build | -11 -10 -10 -10 -9 -8 -8 -7 -7 -6 -6 ------- Run | Yrd Mat Min Exi Min Mat Gar Fac Gar Fac Low Slots Evolved 8 | . . . . . 4 . 2 . 2 . Power 1 | . . . . . . . . . 1 . Propulsion . | . . . . . . . . . . . Utility 6 | . . . . . 3 . 2 . 1 . Weapon 1 | . . . . . 1 . . . . . Parts Attached 108 | 5 . 5 6 7 3 19 3 18 35 7 Power 9 | . . 1 . 2 . 1 . 1 3 1 Engine 4 | . . 1 . 2 . . . 1 . . Core 5 | . . . . . . 1 . . 3 1 Reactor . | . . . . . . . . . . . Propulsion 18 | 2 . 3 . . . 2 2 . 8 1 Treads 2 | . . . . . . 2 . . . . Leg 1 | . . . . . . . . . 1 . Wheel 10 | 2 . 3 . . . . 2 . 3 . Hover . | . . . . . . . . . . . Flight 5 | . . . . . . . . . 4 1 Utility 50 | 1 . . 2 4 1 13 1 11 17 . Device 26 | . . . 1 2 . 6 . 5 12 . Storage 2 | 1 . . 1 . . . . . . . Processor 3 | . . . . . . 1 . . 2 . Hackware 7 | . . . . . . 1 . 5 1 . Protection 12 | . . . . 2 1 5 1 1 2 . Artifact . | . . . . . . . . . . . Weapon 31 | 2 . 1 4 1 2 3 . 6 7 5 Energy Gun 3 | . . . . . . . . . . 3 Energy Cannon 2 | . . . 2 . . . . . . . Ballistic Gun 12 | 2 . 1 2 1 1 2 . . 1 2 Ballistic Cannon 8 | . . . . . 1 . . 4 3 . Launcher . | . . . . . . . . . . . Special Weapon 5 | . . . . . . 1 . 2 2 . Impact Weapon . | . . . . . . . . . . . Slashing Weapon . | . . . . . . . . . . . Piercing Weapon . | . . . . . . . . . . . Special Melee Weapon 1 | . . . . . . . . . 1 . Unidentified Prototypes 4 | . . . 3 . . . . . 1 . Parts Lost 42 | . . 4 . 2 . 7 . 2 27 . Power 5 | . . . . 1 . 1 . . 3 . Propulsion 12 | . . 3 . . . 2 . 1 6 . Utility 13 | . . . . . . 2 . . 11 . Weapon 12 | . . 1 . 1 . 2 . 1 7 . Highest Loss Streak 7 | . . 3 . 1 . 3 . 1 7 . To Critical Strikes 1 | . . . . . . . . . 1 . Average Slot Usage (%) 80 | . 71 77 90 95 72 87 84 90 62 43 Engine 4 | . . 11 14 13 9 3 . 2 . . Core 3 | . . . . . . 4 7 4 3 . Treads 5 | . . . . . . 13 9 . . . Wheel 9 | . 28 25 28 28 18 2 5 8 4 . Device 8 | . . . 7 1 . 8 7 9 14 6 Storage 8 | . 14 14 14 14 9 9 7 7 3 . Processor 3 | . . . . . . 4 7 7 3 13 Hackware 3 | . . . . . . . 7 11 6 . Protection 9 | . . . . 11 12 13 7 15 4 . Ballistic Gun 12 | . 28 24 25 25 19 14 15 8 1 1 Ballistic Cannon 6 | . . . . . 3 7 . 7 10 . Special Weapon 2 | . . . . . . 4 7 3 . . Naked Turns . | . . . . . . . . . . . Heaviest Build 98 | 9 9 14 50 55 77 79 73 88 98 11 Greatest Support 40 | 20 20 26 20 20 20 40 40 20 20 12 Greatest Overweight (x) 18 | . . 1 2 2 3 7 3 8 18 . Average Overweight (x) 2 | . . . . 2 2 2 1 6 2 . Largest Inventory Capacity 20 | 8 8 8 20 20 20 20 20 20 20 5 Average Capacity 16 | 7 8 8 9 20 20 20 20 20 14 5 Most Carried 20 | 4 5 8 8 14 18 20 20 20 19 5 Average Carried 14 | 1 3 6 6 11 15 17 19 18 10 4 Final Capacity 20 | 8 8 8 20 20 20 20 20 20 5 5 Final Carried 20 | 3 5 7 7 13 18 20 20 18 5 4 Class Distribution -------------------- 20% | Scavenger-Skirmisher 19% | Mutant 18% | Scavenger-Mutant 16% | Scavenger-Tank 11% | Skirmisher 6% | Tank 4% | Sprinter Dominant Class ---------------- Mutant | -10/Materials Mutant | -10/Mines Mutant | -10/Exiles Scavenger-Mutant | -9/Mines Scavenger-Tank | -8/Materials Scavenger-Skirmisher | -8/Garrison Scavenger-Skirmisher | -7/Factory Scavenger-Tank | -7/Garrison Scavenger-Mutant | -6/Factory Sprinter | -6/Lower Caves Resources | -11 -10 -10 -10 -9 -8 -8 -7 -7 -6 -6 ----------- Run | Yrd Mat Min Exi Min Mat Gar Fac Gar Fac Low Matter Collected 4071 | 274 69 368 . 232 71 1165 86 408 1341 57 Remotely . | . . . . . . . . . . . Salvage Created 2680 | 82 95 137 . 285 50 693 203 293 795 47 Parts 152 | 1 13 7 . 13 1 44 14 11 45 3 Haulers Intercepted 1 | . . . . . 1 . . . . . Recyclers Shooed 4 | . . . . 1 . . . . 3 . Parts Field Recycled 1 | . . . . . . . . . 1 . Retrieved Matter 3 | . . . . . . . . . 3 . Parts Self-Destructed . | . . . . . . . . . . . Prevented . | . . . . . . . . . . . Kills | -11 -10 -10 -10 -9 -8 -8 -7 -7 -6 -6 ------- Run | Yrd Mat Min Exi Min Mat Gar Fac Gar Fac Low Combat Hostiles Destroyed 72 | . 6 7 . 5 . 21 2 8 21 2 Guns 40 | . 6 7 . 5 . 11 2 5 2 2 Cannons 31 | . . . . . . 10 . 3 18 . AOE 1 | . . . . . . . . . 1 . Classes Destroyed 15 | 1 1 3 . 2 2 3 1 . 2 . Worker 2 | . . . . . . . . . 2 . Builder 4 | . . . . . 1 . 1 . 2 . Tunneler 1 | . . . . . . . 1 . . . Hauler 1 | . . . . . 1 . . . . . Recycler 2 | 1 . . . . . . 1 . . . Swarmer 26 | . 6 3 . . . 5 . 1 9 2 Grunt 25 | . . 1 . 3 . 8 2 5 6 . Brawler 2 | . . . . 1 . . . . 1 . Duelist 2 | . . . . 1 . 1 . . . . Sentry 6 | . . . . . . 3 . 2 1 . Demolisher 1 | . . 1 . . . . . . . . Specialist 2 | . . . . . . . . . 2 . Hunter 2 | . . . . . . 1 . . 1 . Programmer 4 | . . . . . . 3 . . 1 . Assembled 2 | . . 2 . . . . . . . . Thug 1 | . . . . 1 . . . . . . Best Kill Streak 5 | 1 3 3 . 3 1 3 4 3 5 1 Combat Bots Only 5 | . 3 3 . 3 . 3 2 3 5 1 Max Kills in Single Turn 2 | 1 2 1 . 1 1 2 2 1 1 1 Gunslinging 1 | . 1 . . . . . . . . . Exploded 1 | . . . . . . . . . 1 . Melee . | . . . . . . . . . . . Uniques/NPCs Destroyed . | . . . . . . . . . . . Combat | -11 -10 -10 -10 -9 -8 -8 -7 -7 -6 -6 -------- Run | Yrd Mat Min Exi Min Mat Gar Fac Gar Fac Low Hostile Shots Fired 691 | . 30 23 . 27 . 144 3 94 331 39 Missed 231 | . 6 4 . 11 . 42 2 23 123 20 Damage Taken 6001 | . 195 296 . 212 . 1387 17 616 3088 190 Core 1264 | . 41 87 . 60 . 99 . 122 750 105 Absorbed by Shields . | . . . . . . . . . . . Redirected to Shielding 5 | . . . . . . 5 . . . . Core Remaining (%) 72 | 100 . . . 24 . 82 . 82 . . Volleys Fired 335 | 4 15 35 . 29 5 92 5 54 86 10 Largest 3 | 2 2 2 . 2 3 3 2 3 3 2 Hottest 166 | 40 40 40 . 40 87 87 53 122 166 109 Shots Fired 609 | 8 30 46 . 50 13 235 10 92 114 11 Gun 369 | 8 30 46 . 50 10 147 10 39 18 11 Cannon 217 | . . . . . 3 80 . 43 91 . Launcher . | . . . . . . . . . . . Special 23 | . . . . . . 8 . 10 5 . Kinetic 583 | 8 30 46 . 50 13 227 10 82 109 8 Thermal 3 | . . . . . . . . . . 3 Explosive . | . . . . . . . . . . . Electromagnetic . | . . . . . . . . . . . Robot Hit Streak 12 | 2 5 12 . 11 10 11 6 7 10 4 Robot Miss Streak 10 | 1 3 8 . 2 1 7 1 3 10 2 Penetration Max 1 | . . . . . . . . 1 1 . Secondary Targets 6 | . 2 2 . 2 . . . . . . Max Gunslinging Chain 1 | . 1 1 . 1 . . . . . . Shots Hit Robots 307 | 5 15 27 . 37 10 80 8 40 78 7 Core Hits 145 | 2 6 14 . 16 4 34 7 15 44 3 Critical Kills 12 | . . . . . . . . . 12 . Critical Parts Destroyed 17 | . . . . . . . . . 16 1 Critical Strikes 38 | . . . . . . 5 . 1 30 2 Burn 1 | . . . . . . . . . . 1 Destroy 31 | . . . . . . . . . 30 1 Blast 6 | . . . . . . 5 . 1 . . Melee Attacks 2 | . . . . . . . . . 2 . Impact . | . . . . . . . . . . . Slashing . | . . . . . . . . . . . Piercing . | . . . . . . . . . . . Sneak Attacks 2 | . . . . . . . . . 2 . Combat Hostiles . | . . . . . . . . . . . Follow-up Attacks . | . . . . . . . . . . . Damage Inflicted 4951 | 62 213 352 . 398 154 1459 157 700 1322 134 Guns 2812 | 62 213 351 . 398 83 702 157 486 226 134 Cannons 2125 | . . . . . 71 757 . 214 1083 . Explosions . | . . . . . . . . . . . Melee . | . . . . . . . . . . . Ramming 14 | . . 1 . . . . . . 13 . Kinetic 4887 | 62 213 351 . 398 154 1459 157 700 1309 84 Thermal 50 | . . . . . . . . . . 50 Explosive . | . . . . . . . . . . . Electromagnetic . | . . . . . . . . . . . Impact . | . . . . . . . . . . . Slashing . | . . . . . . . . . . . Piercing . | . . . . . . . . . . . Highest Corruption 13 | . . . . . 4 5 . 1 13 13 Average Corruption 6 | . . . . . 3 4 . 1 11 13 Corruption Purged . | . . . . . . . . . . . Corruption Blocked . | . . . . . . . . . . . Effects 106 | . . . . . 1 53 . 1 47 4 Message Errors 31 | . . . . . . 15 . . 14 2 Matter Fused 17 | . . . . . . 8 . . 8 1 Heat Flow Errors 9 | . . . . . . 4 . . 5 . Energy Discharges 17 | . . . . . 1 6 . 1 8 1 Data Loss (minor) 8 | . . . . . . 6 . . 2 . Data Loss (major) 6 | . . . . . . 4 . . 2 . Misfires 7 | . . . . . . 6 . . 1 . Alerts 4 | . . . . . . 4 . . . . Misdirections 1 | . . . . . . . . . 1 . Weapon Failures 6 | . . . . . . . . . 6 . Overload Shots . | . . . . . . . . . . . Overflow Damage 24 | . . . . . 4 12 . 5 3 . Projectiles 24 | . . . . . 4 12 . 5 3 . Explosions . | . . . . . . . . . . . Melee . | . . . . . . . . . . . Knockbacks 26 | . . . . . 1 6 . 3 16 . Impact . | . . . . . . . . . . . Kinetic 23 | . . . . . 1 5 . 3 14 . Secondary 3 | . . . . . . 1 . . 2 . Self-Inflicted Damage 5 | . . . . . . . . . 5 . Shots . | . . . . . . . . . . . Rammed 2 | . . 1 . . . . . . 1 . Targets Rammed 3 | . . 1 . . . . . . 2 . Kicked 1 | . . . . . . . . . 1 . Crushed . | . . . . . . . . . . . Highest Temperature 455 | . 1 10 . 12 42 324 4 199 455 102 Average Temperature 77 | . 1 7 . 7 21 82 4 54 146 49 Received Heat Transfer 1486 | . . 106 . 84 . 324 9 312 651 . Effects 1 | . . . . . . . . . 1 . Damage (minor) 1 | . . . . . . . . . 1 . Siege Activations . | . . . . . . . . . . . Robots Corrupted . | . . . . . . . . . . . Combat Hostiles . | . . . . . . . . . . . Parts Fried . | . . . . . . . . . . . Impact Corruptions 1 | . . . . . . 1 . . . . Robots Melted . | . . . . . . . . . . . Combat Hostiles . | . . . . . . . . . . . Parts Melted . | . . . . . . . . . . . Heat Transferred 148 | . . . . . . . . . . 148 Parts Sabotaged . | . . . . . . . . . . . Parts Stolen . | . . . . . . . . . . . Parts Stripped . | . . . . . . . . . . . Power Chain Reactions . | . . . . . . . . . . . Alert | -11 -10 -10 -10 -9 -8 -8 -7 -7 -6 -6 ------- Run | Yrd Mat Min Exi Min Mat Gar Fac Gar Fac Low Peak Influence 1626 | 5 208 166 . 115 38 1626 937 887 465 . Initial 853 | . 3 81 . . . 24 853 655 465 . Average 477 | 1 83 94 . 96 5 690 890 790 280 . Maximum Alert Level 5 | . 1 . . . . 5 3 3 2 . Low Security (%) 33 | 100 87 100 . 100 100 14 . . 26 . Level 1 16 | . 12 . . . . 13 . . 49 . Level 2 15 | . . . . . . 21 . 12 24 . Level 3 26 | . . . . . . 32 100 87 . . Level 4 6 | . . . . . . 16 . . . . Level 5 . | . . . . . . 1 . . . . High Security . | . . . . . . . . . . . Max Security . | . . . . . . . . . . . Squads Dispatched 8 | . . . . . . . 1 . 7 . Investigation . | . . . . . . . . . . . Extermination 1 | . . . . . . . . . 1 . Reinforcement 6 | . . . . . . . . . 6 . Assault . | . . . . . . . . . . . Garrison 1 | . . . . . . . 1 . . . Intercept . | . . . . . . . . . . . Searches Triggered . | . . . . . . . . . . . Construction Impeded 1 | . . . . . . . . . 1 . Haulers Reinforced 1 | . . . . . . . . . 1 . Active Scanning Responses . | . . . . . . . . . . . Cargo Convoy Interrupts . | . . . . . . . . . . . Stealth | -11 -10 -10 -10 -9 -8 -8 -7 -7 -6 -6 --------- Run | Yrd Mat Min Exi Min Mat Gar Fac Gar Fac Low Distress Signals 1 | . . . . . . . . . 1 . Communications Jammed . | . . . . . . . . . . . Distress Signals . | . . . . . . . . . . . Times Spotted 135 | . 9 10 . 5 3 36 2 19 40 11 Peak Tracking Total 8 | . 4 3 . 3 1 5 2 8 6 6 Tactical Retreats 8 | . 1 1 . . . 1 . . 3 2 Traps | -11 -10 -10 -10 -9 -8 -8 -7 -7 -6 -6 ------- Run | Yrd Mat Min Exi Min Mat Gar Fac Gar Fac Low Traps Triggered 14 | . . . . . 2 7 . 4 1 . Indirectly . | . . . . . . . . . . . Trap Hack Attempts . | . . . . . . . . . . . Triggered . | . . . . . . . . . . . Disarmed . | . . . . . . . . . . . Reprogrammed . | . . . . . . . . . . . Reused . | . . . . . . . . . . . Traps Extracted . | . . . . . . . . . . . Installed 3 | . . 3 . . . . . . . . Triggered . | . . . . . . . . . . . Objects Rigged 29 | . . . . 2 . 11 . 5 11 . Exploded 18 | . . . . . . 5 . 4 9 . Machines | -11 -10 -10 -10 -9 -8 -8 -7 -7 -6 -6 ---------- Run | Yrd Mat Min Exi Min Mat Gar Fac Gar Fac Low Machines Disabled 9 | . . . . 1 . 6 1 1 . . Max in Single Turn 1 | . . . . 1 . 1 1 1 . . Garrison Access 1 | . . . . . . . . . 1 . Garrison Relay 6 | . . . . . . 5 . 1 . . Machines Repaired . | . . . . . . . . . . . Machines Dismantled . | . . . . . . . . . . . Machines Sabotaged . | . . . . . . . . . . . Overloaded Fab Kills . | . . . . . . . . . . . Hacking | -11 -10 -10 -10 -9 -8 -8 -7 -7 -6 -6 --------- Run | Yrd Mat Min Exi Min Mat Gar Fac Gar Fac Low Machines Accessed 20 | . 2 1 1 . 3 4 1 1 6 1 Terminals 9 | . 1 . . . 1 4 . 1 2 . Fabricators 1 | . . . . . . . . . 1 . Repair Stations . | . . . . . . . . . . . Recycling Units 3 | . 1 . . . . . . . 2 . Scanalyzers 1 | . . . . . 1 . . . . . Garrison Access 3 | . . . . . 1 . 1 . 1 . Total Hacks 35 | . 4 1 4 . 5 7 1 3 9 1 Successful 20 | . 2 1 4 . 2 3 1 1 5 1 Failed 15 | . 2 . . . 3 4 . 2 4 . Catastrophic 2 | . . . . . . . . 1 1 . Database Lockouts . | . . . . . . . . . . . Manual 3 | . 2 . 1 . . . . . . . Terminals 17 | . 2 . . . 2 7 . 3 3 . Fabricators 2 | . . . . . . . . . 2 . Repair Stations . | . . . . . . . . . . . Recycling Units 5 | . 2 . . . . . . . 3 . Scanalyzers 2 | . . . . . 2 . . . . . Garrison Access 3 | . . . . . 1 . 1 . 1 . Terminal Hacks 11 | . 1 1 4 . . 3 . 1 . 1 Record 4 | . . . 4 . . . . . . . Open Door 2 | . . 1 . . . . . . . 1 Emergency Access Points 2 | . . . . . . 1 . 1 . . Zone Layout 1 | . 1 . . . . . . . . . Patrol Navigation 1 | . . . . . . 1 . . . . Security Stations 1 | . . . . . . 1 . . . . Fabricator Hacks 2 | . . . . . . . . . 2 . Network Status 1 | . . . . . . . . . 1 . Build 1 | . . . . . . . . . 1 . Repair Station Hacks . | . . . . . . . . . . . Recycling Unit Hacks 2 | . . . . . . . . . 2 . Report Inventory 2 | . . . . . . . . . 2 . Scanalyzer 1 | . . . . . 1 . . . . . Insert Component 1 | . . . . . 1 . . . . . Garrison Access Hacks 3 | . . . . . 1 . 1 . 1 . Unlock Access 2 | . . . . . 1 . 1 . . . Seal Access 1 | . . . . . . . . . 1 . Unauthorized Hacks 1 | . 1 . . . . . . . . . Terminals . | . . . . . . . . . . . Fabricators . | . . . . . . . . . . . Repair Stations . | . . . . . . . . . . . Recycling Units 1 | . 1 . . . . . . . . . Reject 1 | . 1 . . . . . . . . . Scanalyzers . | . . . . . . . . . . . Garrison Access . | . . . . . . . . . . . Data Cores Recovered 1 | . . . . . 1 . . . . . Used 1 | . . . . . 1 . . . . . Hacking Detections 10 | . . . . . 1 3 . 1 5 . Full Trace Events 3 | . . . . . . 2 . 1 . . Feedback Events 1 | . . . . . . . . 1 . . Corruption 1 | . . . . . . . . 1 . . Feedback Blocked . | . . . . . . . . . . . Robot Schematics Acquired . | . . . . . . . . . . . Robots Built 1 | . . . . . . . . . 1 . Authchips . | . . . . . . . . . . . Time 81 | . . . . . . . . . 81 . Total Robot Build Rating 1 | . . . . . . . . . 1 . Part Schematics Acquired . | . . . . . . . . . . . Parts Built . | . . . . . . . . . . . Authchips . | . . . . . . . . . . . Time . | . . . . . . . . . . . Total Part Build Rating . | . . . . . . . . . . . Parts Repaired . | . . . . . . . . . . . Time . | . . . . . . . . . . . Parts Recycled . | . . . . . . . . . . . Recycled Matter . | . . . . . . . . . . . Retrieved Matter . | . . . . . . . . . . . Retrieved Components . | . . . . . . . . . . . Parts Scanalyzed . | . . . . . . . . . . . Part Schematics Acquired . | . . . . . . . . . . . Parts Damaged . | . . . . . . . . . . . Bothacking | -11 -10 -10 -10 -9 -8 -8 -7 -7 -6 -6 ------------ Run | Yrd Mat Min Exi Min Mat Gar Fac Gar Fac Low Used RIF Installer 2 | . . . . . . 1 . 1 . . Coupler Efficiency 1 | . . . . . . . . 1 . . Robots Hacked 13 | . . . . . . 1 . 6 6 . Non-combat 5 | . . . . . . . . . 5 . Combat 8 | . . . . . . 1 . 6 1 . Robot Hacks Applied 14 | . . . . . . 1 . 6 7 . find_chute 1 | . . . . . . . . . 1 . drop_inventory 1 | . . . . . . . . . 1 . purge_threat 1 | . . . . . . . . . 1 . amplify_resonance 3 | . . . . . . . . 1 2 . disable_weapons 1 | . . . . . . . . . 1 . formatsys_low 1 | . . . . . . . . . 1 . formatsys_high 6 | . . . . . . 1 . 5 . . Relay Couplers Released 24 | . . . . . . 19 . 5 . . Machine Destruction 24 | . . . . . . 19 . 5 . . Attached 7 | . . . . . . 1 . 5 1 . Fabnet Peak Effective % . | . . . . . . . . . . . Robots Rewired 4 | . . . . . . 4 . . . . Allies Hacked . | . . . . . . . . . . . Hacks Repelled . | . . . . . . . . . . . Allies | -11 -10 -10 -10 -9 -8 -8 -7 -7 -6 -6 -------- Run | Yrd Mat Min Exi Min Mat Gar Fac Gar Fac Low Total Allies 16 | . . . . 4 . 5 . 5 2 . Largest Group 4 | . . . . 3 3 4 1 4 2 . Highest-Rated Group 96 | . . . . 40 40 96 16 85 95 . Highest-Rated Ally 85 | . . . . 31 16 24 16 85 85 . Total Orders 8 | . . . . . . . . 2 6 . STAY 1 | . . . . . . . . 1 . . FOLLOW 2 | . . . . . . . . 1 1 . COLLECT 1 | . . . . . . . . . 1 . EXPLORE 4 | . . . . . . . . . 4 . Ally Attacks 72 | . . . . . 14 27 3 22 6 . Total Damage 1696 | . . . . . 149 686 51 388 422 . Kills 9 | . . . . . 2 6 . 1 . . Allies Corrupted . | . . . . . . . . . . . Allies Melted . | . . . . . . . . . . . Intel | -11 -10 -10 -10 -9 -8 -8 -7 -7 -6 -6 ------- Run | Yrd Mat Min Exi Min Mat Gar Fac Gar Fac Low Robot Analysis Total . | . . . . . . . . . . . Derelict Logs Recovered 1 | . . 1 . . . . . . . . Drone Launches 4 | . . . . . . . . . 4 . Drone Recoveries . | . . . . . . . . . . . Exploration | -11 -10 -10 -10 -9 -8 -8 -7 -7 -6 -6 ------------- Run | Yrd Mat Min Exi Min Mat Gar Fac Gar Fac Low Turns Passed 7434 | 54 131 672 252 427 280 2747 128 1000 1641 102 Spaces Moved 4528 | 39 105 607 284 297 200 1072 58 458 1185 223 Core 56 | 7 . . . . . . . . 49 . Treads 806 | . . . . . . 776 30 . . . Legs 36 | . . . . . . . . . 36 . Wheels 2746 | 32 105 607 284 297 200 296 28 458 439 . Hover . | . . . . . . . . . . . Flight 884 | . . . . . . . . . 661 223 Fastest Speed 32 | 50 80 80 80 110 110 125 125 125 32 32 Average Speed 131 | 74 80 87 83 110 116 223 184 173 97 32 Slowest Speed 950 | 80 80 100 110 110 125 400 240 200 950 32 Overloaded Moves . | . . . . . . . . . . . Propulsion Burnouts . | . . . . . . . . . . . Robots Hopped 2 | . . . . . . . . . 2 . Cave-ins Triggered . | . . . . . . . . . . . Exploration Rate (%) 43 | 4 27 94 63 66 28 93 1 50 18 29 Regions Visited 10 Branch Regions 4 Pre-discovered Areas 3 | . . 2 1 . . . . . . . Known Exits Taken 2 | . . . . . 1 . 1 . . . Unknown Exits Taken 6 | 1 1 1 1 1 . . . . 1 . Scrap Searched 2 | . . 1 . 1 . . . . . . Spaces Dug . | . . . . . . . . . . . Terrain Destroyed 2 | . . . . . . . . 2 . . Melee . | . . . . . . . . . . . Projectile 2 | . . . . . . . . 2 . . AOE . | . . . . . . . . . . . Terrain Rammed . | . . . . . . . . . . . Walls Destroyed . | . . . . . . . . . . . Machines Disabled . | . . . . . . . . . . . Actions | -11 -10 -10 -10 -9 -8 -8 -7 -7 -6 -6 --------- Run | Yrd Mat Min Exi Min Mat Gar Fac Gar Fac Low Total 5477 | 55 121 699 301 353 236 1252 69 591 1558 242 Wait 268 | . . 44 . 5 23 9 . 6 181 . Move 4512 | 38 104 606 283 296 199 1070 57 456 1180 223 Hop 2 | . . . . . . . . . 2 . Pick Up 105 | 8 2 5 6 10 6 22 2 13 30 1 Fast Attach 17 | . . 1 1 . . 1 1 1 9 3 Attach 62 | 5 . 4 4 4 2 11 2 7 21 2 Detach 9 | . . . . 2 . 2 . 1 4 . Swap 29 | . . . 1 3 1 7 . 10 5 2 Drop 61 | . . . 6 2 . 11 2 14 25 1 Fire 335 | 4 15 35 . 29 5 92 5 54 86 10 Melee 2 | . . . . . . . . . 2 . Ram 2 | . . 1 . . . . . . 1 . Kick 1 | . . . . . . . . . 1 . Crush . | . . . . . . . . . . . Escape Stasis 38 | . . . . . . 14 . 24 . . Rewire 2 | . . . . . . 2 . . . . Trap 32 | . . 3 . 2 . 11 . 5 11 . Miscellaneous . | . . . . . . . . . . . Route ------- -11/Scrapyard -10/Materials -10/Mines (discovered 3 exits: [*Mat x2] / *Exi) -10/Exiles (discovered 2 exits: [*Min x2]) -9/Mines -8/Materials -8/Garrison (discovered 4 exits: *Fac x3 / [*Mat]) -7/Factory -7/Garrison -6/Factory (discovered 2 exits: *Low x2) -6/Lower Caves History --------- Turn | Location | Event 19 | -11/Scrapyard | Discovered new exit (range 16) 55 | -11/Scrapyard | Entered Materials 176 | -10/Materials | Discovered new exit (range 7) 186 | -10/Materials | Entered Mines 222 | -10/Mines | Learned location of Zion (-6) 236 | -10/Mines | Learned location of Storage (-9) 256 | -10/Mines | Assembled infested the area 300 | -10/Mines | Found the Drone Emporium 304 | -10/Mines | Found Prototype Device 310 | -10/Mines | Build established: Mutant 359 | -10/Mines | Core integrity fell below 50% 389 | -10/Mines | Lost 3 parts (2n1w) 733 | -10/Mines | Discovered new exit (range 9) 775 | -10/Mines | Discovered new exit (range 7) 828 | -10/Mines | Found a hidden stash of uninstalled traps 855 | -10/Mines | Deemed a non-threat by the Exiles lab entrance 855 | -10/Mines | Discovered new exit (range 5) 858 | -10/Mines | Entered Exiles 869 | -10/Exiles | Discovered new exit (range 15) 879 | -10/Exiles | Met 8R-AWN 891 | -10/Exiles | Met EX-HEX 913 | -10/Exiles | Met EX-BIN 925 | -10/Exiles | Aligned with FarCom system 926 | -10/Exiles | Given EX-Vault access code 960 | -10/Exiles | Opened EX-Vault 966 | -10/Exiles | Found Prototype Energy Cannon 967 | -10/Exiles | Identified YOLO Cannon 972 | -10/Exiles | Found Prototype Energy Cannon 973 | -10/Exiles | Identified Firepult 976 | -10/Exiles | Found Prototype Device 977 | -10/Exiles | Identified PSU Rigger 1001 | -10/Exiles | Warned to stay clear of 0b10 Research branches 1025 | -10/Exiles | Met EX-DEC 1096 | -10/Exiles | Discovered new exit (range 14) 1110 | -10/Exiles | Left Exiles lab with PSU Rigger 1110 | -10/Exiles | Entered Mines 1123 | -9/Mines | Met a Derelict bent on vengeance 1387 | -9/Mines | Received a Mining Laser from a helpful Derelict 1445 | -9/Mines | Build established: Scavenger-Mutant 1509 | -9/Mines | Discovered new exit (range 9) 1523 | -9/Mines | Assisted by bots powering up and referring to "LRC-V3" 1537 | -9/Mines | Entered Materials 1537 | -8/Materials | Accompanied by 3 allies 1537 | -8/Materials | Evolved 4 slots: Utility x3, Weapon x1 1553 | -8/Materials | Identified Decoy Drone Bay 1816 | -8/Materials | Identified exit to Garrison 1817 | -8/Materials | Entered Garrison 1817 | -8/Garrison | Accompanied by 2 allies 1831 | -8/Garrison | Garrison Relay disabled 1871 | -8/Garrison | Triggered checkpoint 2199 | -8/Garrison | Triggered checkpoint 2214 | -8/Garrison | Build established: Tank 2294 | -8/Garrison | Discovered new exit (range 6) 2367 | -8/Garrison | Garrison Relay disabled 2465 | -8/Garrison | Triggered checkpoint 2737 | -8/Garrison | Triggered checkpoint 2777 | -8/Garrison | Build established: Skirmisher 2844 | -8/Garrison | Discovered new exit (range 10) 2901 | -8/Garrison | Triggered checkpoint 2920 | -8/Garrison | Learned Factory security intel 2949 | -8/Garrison | Triggered checkpoint 2961 | -8/Garrison | Garrison Relay disabled 3053 | -8/Garrison | Lost 3 parts (1p2w) 3161 | -8/Garrison | Triggered checkpoint 3328 | -8/Garrison | Build established: Scavenger-Skirmisher 3457 | -8/Garrison | Lost 3 allies 3863 | -8/Garrison | Discovered new exit (range 8) 3993 | -8/Garrison | Triggered checkpoint 4138 | -8/Garrison | Installed Relay Interface Framework 4216 | -8/Garrison | Garrison Relay disabled 4370 | -8/Garrison | Discovered new exit (range 10) 4493 | -8/Garrison | Garrison Relay disabled 4564 | -8/Garrison | Entered Factory 4564 | -7/Factory | Accompanied by 1 ally 4564 | -7/Factory | Evolved 2 slots: Utility x2 4579 | -7/Factory | Identified exit to Garrison 4630 | -7/Factory | Garrison activated, responded to threat 4692 | -7/Factory | Entered Garrison 4692 | -7/Garrison | Accompanied by 1 ally 4750 | -7/Garrison | Triggered checkpoint 4776 | -7/Garrison | Garrison Relay disabled 4842 | -7/Garrison | Triggered checkpoint 4899 | -7/Garrison | Lost 5 allies 5006 | -7/Garrison | Build established: Scavenger-Tank 5094 | -7/Garrison | Triggered checkpoint 5141 | -7/Garrison | Expanded RIF knowledge: Coupler Efficiency 5172 | -7/Garrison | Triggered checkpoint 5271 | -7/Garrison | Spotted B-75 Beast 5273 | -7/Garrison | Assimilated Beast 4a with formatsys_high 5448 | -7/Garrison | Discovered new exit (range 10) 5564 | -7/Garrison | Triggered checkpoint 5675 | -7/Garrison | Build established: Scavenger-Mutant 5692 | -7/Garrison | Entered Factory 5692 | -6/Factory | Accompanied by 1 ally 5692 | -6/Factory | Evolved 2 slots: Power x1, Utility x1 5869 | -6/Factory | Fabricated A-02 Transporter (x1) 5900 | -6/Factory | Spotted B-75 Beast 6160 | -6/Factory | System corruption reached 10% 6190 | -6/Factory | Lost 5 parts (1n4u) 6409 | -6/Factory | Lost 3 parts (1p1n1w) 6740 | -6/Factory | Build established: Skirmisher 6797 | -6/Factory | Lost 7 parts (1p1n3u2w) 6915 | -6/Factory | Core integrity fell below 50% 6928 | -6/Factory | Lost 6 parts (1n3u2w) 7000 | -6/Factory | Discovered new exit (range 13) 7081 | -6/Factory | Discovered new exit (range 5) 7318 | -6/Factory | Core integrity fell below 20% 7333 | -6/Factory | Entered Lower Caves 7356 | -6/Lower Caves | Lost 3 parts (1n1u1w) 7365 | -6/Lower Caves | Spotted B-75 Beast 7392 | -6/Lower Caves | Build established: Sprinter 7435 | -6/Lower Caves | Destroyed by S-27 Virus with Autogun Last Messages --------------- Acquired Wave Gun. NAT8HJDADE 6E26 MF3VGBEN/KYW7CNQ4 S-27 Virus destroyed. Slug penetrates S-27 Virus. JYZTOJ1ZLGZ=DJFPK6J2UO&GQ#JN=NO Slug penetrates S-27 Virus. S-27 Virus suffers critical hit (Destroy). Destroyed Autogun. Slug penetrates Wall. Acquired 27 matter. Acquired Lgt. Nuclear Core. Dropped Wave Gun. Acquired 30 matter. S-27 Virus destroyed. Destroyed VTOL Module. S-27 Virus suffers critical hit (Burn). Slug penetrates S-27 Virus. Map ----- +----------------------------------------------------+ | ??????????????????????????????????##### #???# | | ??????????????????????????????????#""#" #??## | | ??????????????????????????????????#"""" #### | | ???????????????????????????????????#"" | | ???????????????????????????????????##" # | | ????????????????????????????????????#### ### # | | ???????????????????????????????????????## #?# # | | ????????????????????????????????????????# #?# #### | | ????????????????????????????????????????# #?###??? | | ?????????????????????????????????######## #??????? | | ?????????????????????????????????# ###????# | | ?????????????????????????????????# #### ### #????# | | ????????????????????????????????## #### ## #???## | | ????????????????????????????????# # #????# | | ????????????#???????????????????## #?????# | | ????????????# #??????????????????## #?????## | | ????????????# ??????????????????## ## ##??????# | | ????????????? ??????????????????#### #???????? | | ??????????????# ???????????????????# #???????? | | ??????????????# ??????????????????# ####????? | | ???????????????? ?????????????????# ## ##?### | | ?????????????????# ????????????????#[ ### ### | | ???????????#?????# ???????????????# " " | | ???????????#s ## #####?????????# !# " | | ???????????# %=s ##????????#! ### | | ?????? s= @ ###?????## !! | | ?????? ### ## ####?## #### | | ??????????????????????##### ### #??# | | ??????????????????????????# #?## | | ??????????????????????????## ### #?# | | ???????????????????????????## ##?# #? | | ????????????????????????????## ##??## | | ?????????????????????????????## #????# | | ??????????????????????????????#### ???# ## | | ?????????????????????????????????# #?# #?# | | ????????????????????????????????? #?# #??# # | | ????????????????????????????????? #???### | | ????????????????????????????????? #?????? | | ?????????????????????????????????# ##### ?????? | | ?????????????????????????????????# ##???# ?????? | | ??????????????????????????????????##???? ????? | | ???????????????????????????????????????? ###????? | | ????????????????????????????????????????##???????? | | ?????????????????????????????????????????????????? | | ?????????????????????????????????????????????????? | | ?????????????????????????????????????????????????? | | ?????????????????????????????????????????????????? | | ?????????????????????????????????????????????????? | | ?????????????????????????????????????????????????? | | ?????????????????????????????????????????????????? | +----------------------------------------------------+ Best States ------------- Heat Dissipation 89 Energy Generation 24 Energy Capacity 290 Matter Stores 300 Matter Capacity 300 Sight Range 20 Terrain Scan Density 10 Armor Coverage 750 Core Shielding 20 Evasion (%) 63 Targeting Accuracy 5 Recoil Reduction 2 Relay Coupler Types 2 Relay Coupler Value 70 Item Schematics ----------------- None Robot Schematics ------------------ None Fabricated ------------ A-02 Transporter | x1 | -6/Factory | Preloaded Alien Tech Used ----------------- None Achievements -------------- None Challenges ------------ None Game ------ Seed SurveybotIonicProtomatter Manual? 0 Play Time 01:28:58 Cumulative 70.9 hours Start 2024.04.29 @ 04:48:26 End 2024.04.29 @ 20:29:00 Sessions 5 Manual Loads 0 Difficulty Rogue Special Mode None Game No. 80 Rogue 71 Adventurer 9 Explorer 0 Win Type - Total 0 Types 0/0/0/0/0/0/0/0/0 Lore% 41 Gallery% 55 Achievement% 42 Wizard Run 0 Options --------- Layout 1 ASCII 0 Keyboard 0 Movement Numpad Keybinds 0 Fullscreen 1 Font 24/Smallcaps Map View 50x35 Zoom Use 0% Tactical HUD 0 Map Filters NONE Filters NONE Steam 1 RUN: 26f5db2c-236d-41cf-88fc-d4dc45a57793